[Event "Late-Titled-Tuesday-Blitz-October-10-2023"]
[Site "Chess.com"]
[Date "2023.10.10"]
[Round "6"]
[White "MathiasWomacka"]
[Black "Rodalquilar"]
[Result "0-1"]
[WhiteElo "2528"]
[BlackElo "2743"]
[TimeControl "180+1"]
[EndTime "15:01:36 PDT"]
[Termination "Rodalquilar won by resignation"]

1. e4 {[%clk 0:03:00.9]} 1... d5 {[%clk 0:03:00.4]} 2. exd5 {[%clk 0:02:57.6]}
2... Qxd5 {[%clk 0:03:01.3]} 3. Nc3 {[%clk 0:02:56.9]} 3... Qa5 {[%clk
0:03:01.6]} 4. d4 {[%clk 0:02:57.3]} 4... Nf6 {[%clk 0:03:02]} 5. Nf3 {[%clk
0:02:57.7]} 5... Bf5 {[%clk 0:03:02.3]} 6. Bd2 {[%clk 0:02:56.1]} 6... e6 {[%clk
0:03:02.6]} 7. Bc4 {[%clk 0:02:53.5]} 7... Bb4 {[%clk 0:03:02.5]} 8. a3 {[%clk
0:02:50.3]} 8... Bxc3 {[%clk 0:03:02.8]} 9. Bxc3 {[%clk 0:02:50.8]} 9... Qb6
{[%clk 0:03:03.3]} 10. Qe2 {[%clk 0:02:43.3]} 10... O-O {[%clk 0:03:02.9]} 11.
O-O-O {[%clk 0:02:25]} 11... Nc6 {[%clk 0:03:03]} 12. Ne5 {[%clk 0:02:21.3]}
12... Rad8 {[%clk 0:02:17.2]} 13. Nxc6 {[%clk 0:01:45.7]} 13... Qxc6 {[%clk
0:02:18.1]} 14. f3 {[%clk 0:01:45]} 14... Nd5 {[%clk 0:02:11.3]} 15. Bd2 {[%clk
0:01:44.8]} 15... Nb6 {[%clk 0:02:08.5]} 16. Bb3 {[%clk 0:01:44.3]} 16... Rxd4
{[%clk 0:02:06.3]} 17. g4 {[%clk 0:01:32.9]} 17... Bg6 {[%clk 0:02:04.1]} 18. h4
{[%clk 0:01:32.9]} 18... Rfd8 {[%clk 0:01:33.5]} 19. h5 {[%clk 0:01:29.5]} 19...
Bd3 {[%clk 0:01:33.7]} 20. Qe5 {[%clk 0:01:17.6]} 20... Bxc2 {[%clk 0:01:20.8]}
21. Bc3 {[%clk 0:01:04]} 21... Bxd1 {[%clk 0:00:36]} 22. Rxd1 {[%clk 0:00:49.5]}
22... Rxd1+ {[%clk 0:00:29.8]} 23. Bxd1 {[%clk 0:00:50.4]} 23... f6 {[%clk
0:00:30.4]} 24. Qe2 {[%clk 0:00:26.3]} 24... Nd5 {[%clk 0:00:30]} 25. Bb3 {[%clk
0:00:26.2]} 25... Nxc3 {[%clk 0:00:28.3]} 26. Qxe6+ {[%clk 0:00:24.7]} 26...
Qxe6 {[%clk 0:00:27.4]} 27. Bxe6+ {[%clk 0:00:25.6]} 27... Kf8 {[%clk 0:00:28]}
28. bxc3 {[%clk 0:00:26.5]} 28... Rd3 {[%clk 0:00:28.2]} 0-1

[Event "Late-Titled-Tuesday-Blitz-October-10-2023"]
[Site "Chess.com"]
[Date "2023.10.10"]
[Round "6"]
[White "nihalsarin"]
[Black "Beca95"]
[Result "1-0"]
[WhiteElo "3110"]
[BlackElo "2850"]
[TimeControl "180+1"]
[EndTime "15:01:43 PDT"]
[Termination "nihalsarin won by resignation"]

1. d4 {[%clk 0:03:00.9]} 1... d6 {[%clk 0:03:00]} 2. e4 {[%clk 0:02:59.4]} 2...
Nf6 {[%clk 0:03:00.1]} 3. Nc3 {[%clk 0:02:59.1]} 3... e5 {[%clk 0:03:00.7]} 4.
Nf3 {[%clk 0:02:58.9]} 4... Nbd7 {[%clk 0:03:00.2]} 5. Bc4 {[%clk 0:02:59.6]}
5... Be7 {[%clk 0:02:59.6]} 6. O-O {[%clk 0:03:00.3]} 6... h6 {[%clk 0:02:57.6]}
7. Re1 {[%clk 0:02:59.9]} 7... c6 {[%clk 0:02:57.1]} 8. a4 {[%clk 0:03:00.4]}
8... Qc7 {[%clk 0:02:57.3]} 9. a5 {[%clk 0:03:00.2]} 9... g5 {[%clk 0:02:56.5]}
10. d5 {[%clk 0:02:57.6]} 10... Nf8 {[%clk 0:02:56.1]} 11. a6 {[%clk 0:02:57.5]}
11... b5 {[%clk 0:02:55.2]} 12. Bf1 {[%clk 0:02:58.1]} 12... b4 {[%clk
0:02:54.9]} 13. Ne2 {[%clk 0:02:55.3]} 13... cxd5 {[%clk 0:02:17.4]} 14. exd5
{[%clk 0:02:56.2]} 14... Ng6 {[%clk 0:02:16.8]} 15. c3 {[%clk 0:02:54.9]} 15...
g4 {[%clk 0:02:14]} 16. Nd2 {[%clk 0:02:54]} 16... Nxd5 {[%clk 0:02:04.5]} 17.
cxb4 {[%clk 0:02:49.3]} 17... O-O {[%clk 0:01:58.9]} 18. Ne4 {[%clk 0:02:43.2]}
18... Nxb4 {[%clk 0:01:51]} 19. Bxh6 {[%clk 0:02:43.6]} 19... Re8 {[%clk
0:01:36.4]} 20. Rc1 {[%clk 0:02:44]} 20... Qb6 {[%clk 0:01:24.2]} 21. Be3 {[%clk
0:02:44.2]} 21... Qd8 {[%clk 0:01:18.8]} 22. N2g3 {[%clk 0:02:41.8]} 22... Be6
{[%clk 0:01:09.3]} 23. Nh5 {[%clk 0:02:33.4]} 23... f5 {[%clk 0:01:04.4]} 24.
Nc3 {[%clk 0:02:27.9]} 24... Kf7 {[%clk 0:00:54.6]} 25. Nb5 {[%clk 0:02:15.9]}
25... Rh8 {[%clk 0:00:50.8]} 26. Ng3 {[%clk 0:02:15.4]} 26... f4 {[%clk
0:00:48.7]} 27. Nc7 {[%clk 0:02:16]} 27... Qd7 {[%clk 0:00:34.6]} 28. Bb5 {[%clk
0:02:08.1]} 28... Qc8 {[%clk 0:00:25.9]} 29. Bd2 {[%clk 0:02:08.5]} 29... fxg3
{[%clk 0:00:23.1]} 30. hxg3 {[%clk 0:02:01.8]} 30... Na2 {[%clk 0:00:19.8]} 31.
Rc4 {[%clk 0:01:47.1]} 31... d5 {[%clk 0:00:18.9]} 32. Nxd5 {[%clk 0:01:41.8]}
32... Qd8 {[%clk 0:00:19.1]} 33. Nc7 {[%clk 0:01:40.4]} 33... Rb8 {[%clk
0:00:13.2]} 34. Nxe6 {[%clk 0:01:36.6]} 34... Kxe6 {[%clk 0:00:13.5]} 35. Rc6+
{[%clk 0:01:33.8]} 35... Bd6 {[%clk 0:00:09.9]} 36. Qxg4+ {[%clk 0:01:30.7]}
36... Kf7 {[%clk 0:00:10.4]} 37. Bc4+ {[%clk 0:01:30]} 37... Kg7 {[%clk
0:00:10.7]} 38. Bxa2 {[%clk 0:01:23.4]} 38... Rb6 {[%clk 0:00:10.3]} 39. Rxb6
{[%clk 0:01:20.1]} 39... Qxb6 {[%clk 0:00:11.2]} 40. Bb1 {[%clk 0:01:18.2]}
40... Bc5 {[%clk 0:00:11.6]} 41. Qxg6+ {[%clk 0:01:15.8]} 41... Qxg6 {[%clk
0:00:12.5]} 42. Bxg6 {[%clk 0:01:16.6]} 42... Kxg6 {[%clk 0:00:13.4]} 43. Rxe5
{[%clk 0:01:17.3]} 1-0

[Event "Late-Titled-Tuesday-Blitz-October-10-2023"]
[Site "Chess.com"]
[Date "2023.10.10"]
[Round "6"]
[White "KorolDimitriy75"]
[Black "chosenpr"]
[Result "0-1"]
[WhiteElo "2403"]
[BlackElo "2274"]
[TimeControl "180+1"]
[EndTime "15:01:48 PDT"]
[Termination "chosenpr won on time"]

1. d4 {[%clk 0:02:52.4]} 1... Nf6 {[%clk 0:02:56.8]} 2. c4 {[%clk 0:02:53]} 2...
e6 {[%clk 0:02:56.1]} 3. Nc3 {[%clk 0:02:53.6]} 3... Bb4 {[%clk 0:02:56.2]} 4.
Qc2 {[%clk 0:02:54.1]} 4... Nc6 {[%clk 0:02:55.8]} 5. Nf3 {[%clk 0:02:53.3]}
5... d6 {[%clk 0:02:55.5]} 6. e4 {[%clk 0:02:49]} 6... e5 {[%clk 0:02:39.9]} 7.
d5 {[%clk 0:02:48.6]} 7... Nd4 {[%clk 0:02:38.8]} 8. Nxd4 {[%clk 0:02:30.3]}
8... exd4 {[%clk 0:02:38.4]} 9. Qa4+ {[%clk 0:02:12.9]} 9... Bd7 {[%clk
0:02:36.9]} 10. Qxb4 {[%clk 0:02:13]} 10... dxc3 {[%clk 0:02:34.8]} 11. Bd3
{[%clk 0:01:59.7]} 11... cxb2 {[%clk 0:02:26.2]} 12. Bxb2 {[%clk 0:01:59]} 12...
O-O {[%clk 0:02:26.7]} 13. O-O {[%clk 0:01:55]} 13... a5 {[%clk 0:02:21.2]} 14.
Qc3 {[%clk 0:01:53.3]} 14... c6 {[%clk 0:02:08.1]} 15. h3 {[%clk 0:01:37.2]}
15... Rc8 {[%clk 0:02:06]} 16. Qd4 {[%clk 0:01:27.7]} 16... Re8 {[%clk
0:01:59.8]} 17. f4 {[%clk 0:01:08.7]} 17... cxd5 {[%clk 0:01:57.1]} 18. cxd5
{[%clk 0:01:05.8]} 18... b5 {[%clk 0:01:42.5]} 19. e5 {[%clk 0:01:01]} 19... Nh5
{[%clk 0:01:34.9]} 20. Rf3 {[%clk 0:00:11.9]} 20... Qe7 {[%clk 0:01:12.9]} 21.
g4 {[%clk 0:00:09.9]} 21... Nxf4 {[%clk 0:00:57.9]} 22. Qxf4 {[%clk 0:00:10]}
22... dxe5 {[%clk 0:00:58.1]} 23. Qe4 {[%clk 0:00:10]} 23... g6 {[%clk
0:00:56.1]} 24. Raf1 {[%clk 0:00:09]} 24... Qc5+ {[%clk 0:00:47.3]} 25. Kh2
{[%clk 0:00:07.8]} 25... Re7 {[%clk 0:00:47.3]} 26. R1f2 {[%clk 0:00:03.5]}
26... Rd8 {[%clk 0:00:38.9]} 27. Rf6 {[%clk 0:00:02.5]} 27... Bc8 {[%clk
0:00:35.2]} 0-1

[Event "Late-Titled-Tuesday-Blitz-October-10-2023"]
[Site "Chess.com"]
[Date "2023.10.10"]
[Round "6"]
[White "German_Bazeev"]
[Black "Zq1"]
[Result "1-0"]
[WhiteElo "2802"]
[BlackElo "2561"]
[TimeControl "180+1"]
[EndTime "15:01:55 PDT"]
[Termination "German_Bazeev won by resignation"]

1. c4 {[%clk 0:03:00.9]} 1... e6 {[%clk 0:02:56.7]} 2. Nf3 {[%clk 0:02:55]} 2...
d5 {[%clk 0:02:55.6]} 3. g3 {[%clk 0:02:55.9]} 3... d4 {[%clk 0:02:53.4]} 4. Bg2
{[%clk 0:02:55]} 4... c5 {[%clk 0:02:50.2]} 5. O-O {[%clk 0:02:54.2]} 5... Nc6
{[%clk 0:02:50.2]} 6. e3 {[%clk 0:02:53.1]} 6... Nf6 {[%clk 0:02:48]} 7. exd4
{[%clk 0:02:53]} 7... cxd4 {[%clk 0:02:48.1]} 8. d3 {[%clk 0:02:53.6]} 8... Bd6
{[%clk 0:02:44.6]} 9. Bg5 {[%clk 0:02:45.8]} 9... h6 {[%clk 0:02:44]} 10. Bxf6
{[%clk 0:02:44.2]} 10... Qxf6 {[%clk 0:02:44.6]} 11. Nbd2 {[%clk 0:02:35.5]}
11... Qd8 {[%clk 0:02:44.3]} 12. Rc1 {[%clk 0:02:33.3]} 12... O-O {[%clk
0:02:40.9]} 13. c5 {[%clk 0:02:32.6]} 13... Be7 {[%clk 0:02:40.9]} 14. a3 {[%clk
0:02:30.9]} 14... e5 {[%clk 0:02:34.3]} 15. Re1 {[%clk 0:02:30.1]} 15... Bf6
{[%clk 0:02:28.5]} 16. Ne4 {[%clk 0:02:30]} 16... a5 {[%clk 0:02:26.1]} 17. Nd6
{[%clk 0:02:29.5]} 17... Qc7 {[%clk 0:02:18.9]} 18. Nd2 {[%clk 0:02:22.2]} 18...
Be6 {[%clk 0:02:11.3]} 19. Qa4 {[%clk 0:02:21.2]} 19... Rab8 {[%clk 0:01:59.3]}
20. N2c4 {[%clk 0:02:12]} 20... Bd7 {[%clk 0:01:48.4]} 21. Nb6 {[%clk
0:02:08.5]} 21... Be7 {[%clk 0:01:33.7]} 22. Nxd7 {[%clk 0:01:47.3]} 22... Qxd7
{[%clk 0:01:33]} 23. Nxb7 {[%clk 0:01:48]} 23... Qxb7 {[%clk 0:01:32.2]} 24.
Bxc6 {[%clk 0:01:48.2]} 24... Qxb2 {[%clk 0:01:31]} 25. Bd7 {[%clk 0:01:28.3]}
25... Rb3 {[%clk 0:01:11.7]} 26. c6 {[%clk 0:01:25.4]} 26... Rxa3 {[%clk
0:01:10.2]} 27. Qc4 {[%clk 0:01:22.4]} 27... Bd6 {[%clk 0:00:53.9]} 28. c7
{[%clk 0:01:20.6]} 28... Bxc7 {[%clk 0:00:53.6]} 29. Qxc7 {[%clk 0:01:21.5]}
29... Rxd3 {[%clk 0:00:50.9]} 30. Qxe5 {[%clk 0:01:18.8]} 30... Rd2 {[%clk
0:00:47.8]} 31. Qf4 {[%clk 0:01:03.2]} 31... d3 {[%clk 0:00:38.4]} 32. Bc6
{[%clk 0:00:56.4]} 32... Rc8 {[%clk 0:00:30.2]} 33. Bd5 {[%clk 0:00:49.5]} 33...
Rdc2 {[%clk 0:00:11.8]} 34. Qxf7+ {[%clk 0:00:43.6]} 34... Kh8 {[%clk
0:00:11.1]} 35. Re8+ {[%clk 0:00:42.6]} 35... Rxe8 {[%clk 0:00:08.1]} 36. Qxe8+
{[%clk 0:00:43.5]} 1-0

[Event "Late-Titled-Tuesday-Blitz-October-10-2023"]
[Site "Chess.com"]
[Date "2023.10.10"]
[Round "6"]
[White "Gentlejimmy7"]
[Black "Zampronha1971"]
[Result "1/2-1/2"]
[WhiteElo "2494"]
[BlackElo "2302"]
[TimeControl "180+1"]
[EndTime "15:01:59 PDT"]
[Termination "Game drawn by repetition"]

1. c4 {[%clk 0:03:00.9]} 1... e6 {[%clk 0:02:58.9]} 2. g3 {[%clk 0:03:01.2]}
2... d5 {[%clk 0:02:58.8]} 3. Bg2 {[%clk 0:03:01.5]} 3... Nf6 {[%clk 0:02:58.8]}
4. Nf3 {[%clk 0:03:02.1]} 4... Be7 {[%clk 0:02:59.1]} 5. O-O {[%clk 0:03:02.7]}
5... O-O {[%clk 0:02:59.7]} 6. d4 {[%clk 0:03:01.9]} 6... c6 {[%clk 0:02:59.9]}
7. Nbd2 {[%clk 0:02:57.8]} 7... Nbd7 {[%clk 0:02:59.5]} 8. b3 {[%clk 0:02:58.2]}
8... b6 {[%clk 0:02:58.6]} 9. Bb2 {[%clk 0:02:58.7]} 9... Bb7 {[%clk 0:02:58.9]}
10. Ne5 {[%clk 0:02:59.2]} 10... Rc8 {[%clk 0:02:54.3]} 11. Rc1 {[%clk
0:02:57.9]} 11... c5 {[%clk 0:02:40.1]} 12. Nxd7 {[%clk 0:02:57.7]} 12... Qxd7
{[%clk 0:02:35.2]} 13. dxc5 {[%clk 0:02:56.9]} 13... bxc5 {[%clk 0:02:30.2]} 14.
cxd5 {[%clk 0:02:56.1]} 14... exd5 {[%clk 0:02:28]} 15. e4 {[%clk 0:02:56.2]}
15... d4 {[%clk 0:02:07.8]} 16. Re1 {[%clk 0:02:56.2]} 16... Rfe8 {[%clk
0:02:06.4]} 17. Qc2 {[%clk 0:02:44.6]} 17... Bf8 {[%clk 0:02:06.5]} 18. Nc4
{[%clk 0:02:39.4]} 18... d3 {[%clk 0:01:54.6]} 19. Qc3 {[%clk 0:02:29.5]} 19...
Nxe4 {[%clk 0:01:49.2]} 20. Qa5 {[%clk 0:02:19.2]} 20... d2 {[%clk 0:01:40.6]}
21. Nxd2 {[%clk 0:02:19.1]} 21... Nxd2 {[%clk 0:01:31.7]} 22. Bxb7 {[%clk
0:02:18.6]} 22... Qxb7 {[%clk 0:01:25.1]} 23. Qxd2 {[%clk 0:02:16.9]} 23...
Rxe1+ {[%clk 0:01:21.6]} 24. Qxe1 {[%clk 0:02:13.3]} 24... Qa6 {[%clk
0:01:15.9]} 25. Qc3 {[%clk 0:02:08.4]} 25... Qe2 {[%clk 0:01:04.7]} 26. Qc2
{[%clk 0:02:06]} 26... Qa6 {[%clk 0:01:03.4]} 27. a4 {[%clk 0:02:03.2]} 27...
Rb8 {[%clk 0:01:01.9]} 28. Ba3 {[%clk 0:02:02.3]} 28... c4 {[%clk 0:00:48.6]}
29. Bxf8 {[%clk 0:01:52.3]} 29... cxb3 {[%clk 0:00:48.8]} 30. Qc3 {[%clk
0:01:36.5]} 30... Kxf8 {[%clk 0:00:41.6]} 31. Qc7 {[%clk 0:01:34.5]} 31... Qb7
{[%clk 0:00:31.7]} 32. Qc5+ {[%clk 0:01:24.2]} 32... Kg8 {[%clk 0:00:30.4]} 33.
Rb1 {[%clk 0:01:24.5]} 33... b2 {[%clk 0:00:30.4]} 34. Qc3 {[%clk 0:01:23.4]}
34... h6 {[%clk 0:00:30.6]} 35. h4 {[%clk 0:01:22.3]} 35... a6 {[%clk
0:00:26.4]} 36. a5 {[%clk 0:01:21.8]} 36... Qb5 {[%clk 0:00:25.2]} 37. Qc7
{[%clk 0:01:21.5]} 37... Qb7 {[%clk 0:00:21.9]} 38. Qc3 {[%clk 0:01:19.9]} 38...
h5 {[%clk 0:00:18.3]} 39. Qc5 {[%clk 0:01:19]} 39... g6 {[%clk 0:00:18.6]} 40.
Qc3 {[%clk 0:01:18.4]} 40... Qb5 {[%clk 0:00:18.3]} 41. Qc7 {[%clk 0:01:17.8]}
41... Re8 {[%clk 0:00:16.7]} 42. Qc3 {[%clk 0:01:16.6]} 42... Re2 {[%clk
0:00:15.7]} 43. Qc8+ {[%clk 0:01:16.1]} 43... Kg7 {[%clk 0:00:15.1]} 44. Qc3+
{[%clk 0:01:15.7]} 44... Kh7 {[%clk 0:00:15]} 45. Qf3 {[%clk 0:01:15.6]} 45...
Re7 {[%clk 0:00:08.8]} 46. Qf6 {[%clk 0:01:13.3]} 46... Rb7 {[%clk 0:00:08.9]}
47. Qc3 {[%clk 0:01:13.3]} 47... Qb3 {[%clk 0:00:07.6]} 48. Qc6 {[%clk 0:01:13]}
48... Qb5 {[%clk 0:00:08.2]} 49. Qc3 {[%clk 0:01:12.6]} 49... Qb4 {[%clk
0:00:08.8]} 50. Qc6 {[%clk 0:01:12.1]} 50... Qb5 {[%clk 0:00:09]} 51. Qc3 {[%clk
0:01:11.9]} 1/2-1/2

[Event "Late-Titled-Tuesday-Blitz-October-10-2023"]
[Site "Chess.com"]
[Date "2023.10.10"]
[Round "6"]
[White "vyprd"]
[Black "borocotoajua"]
[Result "0-1"]
[WhiteElo "2359"]
[BlackElo "2564"]
[TimeControl "180+1"]
[EndTime "15:02:02 PDT"]
[Termination "borocotoajua won by checkmate"]

1. e4 {[%clk 0:03:00.9]} 1... c6 {[%clk 0:03:00]} 2. d4 {[%clk 0:03:00.5]} 2...
d5 {[%clk 0:03:00]} 3. exd5 {[%clk 0:03:01.4]} 3... cxd5 {[%clk 0:03:00.8]} 4.
Bd3 {[%clk 0:03:01.5]} 4... Nc6 {[%clk 0:03:00]} 5. c3 {[%clk 0:03:02.4]} 5...
Nf6 {[%clk 0:02:58.3]} 6. h3 {[%clk 0:03:02.4]} 6... e5 {[%clk 0:02:56]} 7. dxe5
{[%clk 0:03:03.3]} 7... Nxe5 {[%clk 0:02:56.2]} 8. Nf3 {[%clk 0:03:04]} 8...
Nxd3+ {[%clk 0:02:55.6]} 9. Qxd3 {[%clk 0:03:04.9]} 9... Bd6 {[%clk 0:02:52.2]}
10. O-O {[%clk 0:03:05.3]} 10... O-O {[%clk 0:02:51.9]} 11. Be3 {[%clk
0:03:03.5]} 11... Re8 {[%clk 0:02:48]} 12. Nbd2 {[%clk 0:03:02.9]} 12... Ne4
{[%clk 0:02:45.1]} 13. Rad1 {[%clk 0:03:00.7]} 13... Bf5 {[%clk 0:02:42]} 14.
Nd4 {[%clk 0:02:51.4]} 14... Bg6 {[%clk 0:02:35.2]} 15. Nxe4 {[%clk 0:02:50]}
15... Bxe4 {[%clk 0:02:20.7]} 16. Qd2 {[%clk 0:02:50]} 16... Qf6 {[%clk
0:02:01.3]} 17. f3 {[%clk 0:02:44.3]} 17... Qe5 {[%clk 0:01:37.9]} 18. Rfe1
{[%clk 0:02:08.8]} 18... Qh2+ {[%clk 0:01:33.3]} 19. Kf1 {[%clk 0:02:08.5]}
19... Bg6 {[%clk 0:01:19.2]} 20. Bg1 {[%clk 0:02:07.4]} 20... Qh1 {[%clk
0:01:18.2]} 21. Rxe8+ {[%clk 0:02:05.1]} 21... Rxe8 {[%clk 0:01:17]} 22. Re1
{[%clk 0:02:04.4]} 22... Rd8 {[%clk 0:01:04.6]} 23. Qg5 {[%clk 0:01:58.1]} 23...
f6 {[%clk 0:01:00.4]} 24. Qg4 {[%clk 0:01:55.4]} 24... Be5 {[%clk 0:00:22.9]}
25. Rd1 {[%clk 0:01:40.6]} 25... Re8 {[%clk 0:00:21.7]} 26. Ne2 {[%clk
0:01:32.1]} 26... Bc2 {[%clk 0:00:19.7]} 27. Rd2 {[%clk 0:01:29.6]} 27... Bg6
{[%clk 0:00:16.7]} 28. Rxd5 {[%clk 0:01:27.9]} 28... Bf7 {[%clk 0:00:15.8]} 29.
Rd7 {[%clk 0:01:24.1]} 29... h5 {[%clk 0:00:16.2]} 30. Qa4 {[%clk 0:01:16.2]}
30... Bh2 {[%clk 0:00:15.6]} 31. Rd2 {[%clk 0:01:06.1]} 31... Bg6 {[%clk
0:00:10.5]} 32. Qd4 {[%clk 0:00:53.5]} 32... Kh7 {[%clk 0:00:09.5]} 33. Rd1
{[%clk 0:00:45.6]} 33... Re7 {[%clk 0:00:08.3]} 34. Nf4 {[%clk 0:00:39.8]} 34...
Bf7 {[%clk 0:00:06.8]} 35. Qd3+ {[%clk 0:00:38.7]} 35... g6 {[%clk 0:00:06.1]}
36. Nxh5 {[%clk 0:00:36.7]} 36... Qxg1# {[%clk 0:00:05.8]} 0-1

[Event "Late-Titled-Tuesday-Blitz-October-10-2023"]
[Site "Chess.com"]
[Date "2023.10.10"]
[Round "6"]
[White "Javylavilla"]
[Black "isainz"]
[Result "1/2-1/2"]
[WhiteElo "2342"]
[BlackElo "2028"]
[TimeControl "180+1"]
[EndTime "15:02:04 PDT"]
[Termination "Game drawn by repetition"]

1. e4 {[%clk 0:03:00.9]} 1... e6 {[%clk 0:02:59.7]} 2. d4 {[%clk 0:03:00.4]}
2... d5 {[%clk 0:02:59.9]} 3. Nd2 {[%clk 0:03:01.1]} 3... c5 {[%clk 0:02:59.2]}
4. exd5 {[%clk 0:03:00.7]} 4... Qxd5 {[%clk 0:02:59.3]} 5. Ngf3 {[%clk
0:03:00.6]} 5... cxd4 {[%clk 0:02:59.6]} 6. Bc4 {[%clk 0:03:01]} 6... Qd6 {[%clk
0:02:58.9]} 7. O-O {[%clk 0:03:00.4]} 7... Nf6 {[%clk 0:02:58.3]} 8. Nb3 {[%clk
0:03:00.5]} 8... Nc6 {[%clk 0:02:59]} 9. Nbxd4 {[%clk 0:03:00.4]} 9... Nxd4
{[%clk 0:02:59.1]} 10. Nxd4 {[%clk 0:03:01.3]} 10... Bd7 {[%clk 0:02:58.3]} 11.
c3 {[%clk 0:02:48.1]} 11... Qc7 {[%clk 0:02:54.7]} 12. Qe2 {[%clk 0:02:47.1]}
12... O-O-O {[%clk 0:02:53.1]} 13. a4 {[%clk 0:02:42.3]} 13... a6 {[%clk
0:02:48.3]} 14. b4 {[%clk 0:02:41.8]} 14... h5 {[%clk 0:02:46.8]} 15. Bg5 {[%clk
0:02:40.2]} 15... Ng4 {[%clk 0:02:42]} 16. g3 {[%clk 0:02:32.7]} 16... f6 {[%clk
0:02:42.1]} 17. Nxe6 {[%clk 0:02:23.9]} 17... Bxe6 {[%clk 0:02:31.8]} 18. Bxe6+
{[%clk 0:02:23.7]} 18... Kb8 {[%clk 0:02:32.1]} 19. Bf4 {[%clk 0:02:23]} 19...
Bd6 {[%clk 0:02:31.6]} 20. Bxd6 {[%clk 0:02:19.5]} 20... Rxd6 {[%clk 0:02:31.3]}
21. Bxg4 {[%clk 0:02:15.8]} 21... hxg4 {[%clk 0:02:30.4]} 22. Qxg4 {[%clk
0:02:16.7]} 22... Qxc3 {[%clk 0:02:21.2]} 23. Qxg7 {[%clk 0:02:12.8]} 23... Rdd8
{[%clk 0:02:11.9]} 24. Rfc1 {[%clk 0:02:10.2]} 24... Qd4 {[%clk 0:02:06.1]} 25.
b5 {[%clk 0:02:04.9]} 25... Rxh2 {[%clk 0:01:44]} 26. Kxh2 {[%clk 0:01:13.4]}
26... Qxf2+ {[%clk 0:01:43.2]} 27. Kh3 {[%clk 0:01:12.2]} 27... Qf5+ {[%clk
0:01:37.6]} 28. g4 {[%clk 0:00:56.7]} 28... Rd3+ {[%clk 0:01:32.2]} 29. Kh4
{[%clk 0:00:55.2]} 29... Qf2+ {[%clk 0:01:27.9]} 30. Kh5 {[%clk 0:00:55.1]}
30... Rd5+ {[%clk 0:00:40.8]} 31. Kg6 {[%clk 0:00:44.1]} 31... Rg5+ {[%clk
0:00:40.4]} 32. Kf7 {[%clk 0:00:42.7]} 32... Rxg7+ {[%clk 0:00:37.4]} 33. Kxg7
{[%clk 0:00:43.6]} 33... Qf4 {[%clk 0:00:27.5]} 34. Rg1 {[%clk 0:00:37.9]} 34...
Qg5+ {[%clk 0:00:23.5]} 35. Kf7 {[%clk 0:00:37.7]} 35... axb5 {[%clk 0:00:23.2]}
36. axb5 {[%clk 0:00:35.3]} 36... Qxb5 {[%clk 0:00:23.1]} 37. Kxf6 {[%clk
0:00:34.2]} 37... Qc6+ {[%clk 0:00:21.2]} 38. Kf7 {[%clk 0:00:33.6]} 38... Qd7+
{[%clk 0:00:21.1]} 39. Kf6 {[%clk 0:00:33.6]} 39... Qd6+ {[%clk 0:00:21.3]} 40.
Kf7 {[%clk 0:00:34.2]} 40... Qd7+ {[%clk 0:00:21.6]} 41. Kf6 {[%clk 0:00:34.5]}
41... Qd6+ {[%clk 0:00:22]} 42. Kf7 {[%clk 0:00:33.1]} 42... Qd7+ {[%clk
0:00:22.2]} 1/2-1/2

[Event "Late-Titled-Tuesday-Blitz-October-10-2023"]
[Site "Chess.com"]
[Date "2023.10.10"]
[Round "6"]
[White "tgpgoat"]
[Black "miraitrunks"]
[Result "1/2-1/2"]
[WhiteElo "2539"]
[BlackElo "2247"]
[TimeControl "180+1"]
[EndTime "15:02:05 PDT"]
[Termination "Game drawn by repetition"]

1. Nf3 {[%clk 0:03:00.9]} 1... c5 {[%clk 0:02:59.8]} 2. e3 {[%clk 0:03:00.9]}
2... Nc6 {[%clk 0:02:59.2]} 3. Be2 {[%clk 0:03:00]} 3... d5 {[%clk 0:02:59.1]}
4. O-O {[%clk 0:02:59.9]} 4... Nf6 {[%clk 0:02:58.8]} 5. b3 {[%clk 0:03:00.2]}
5... Bg4 {[%clk 0:02:58.5]} 6. Bb2 {[%clk 0:03:00.1]} 6... e6 {[%clk 0:02:58.8]}
7. d4 {[%clk 0:02:59.7]} 7... cxd4 {[%clk 0:02:58]} 8. Nxd4 {[%clk 0:02:59.5]}
8... Bxe2 {[%clk 0:02:57.5]} 9. Qxe2 {[%clk 0:02:59.8]} 9... Nxd4 {[%clk
0:02:58.4]} 10. Bxd4 {[%clk 0:03:00.7]} 10... Bd6 {[%clk 0:02:58.4]} 11. c4
{[%clk 0:03:00.6]} 11... O-O {[%clk 0:02:57.6]} 12. Bb2 {[%clk 0:02:56.8]} 12...
dxc4 {[%clk 0:02:54.8]} 13. Qxc4 {[%clk 0:02:54.3]} 13... Rc8 {[%clk 0:02:54.9]}
14. Qa4 {[%clk 0:02:52.6]} 14... Qc7 {[%clk 0:02:52.8]} 15. h3 {[%clk
0:02:51.8]} 15... Qc2 {[%clk 0:02:38.1]} 16. Bxf6 {[%clk 0:02:38.4]} 16... gxf6
{[%clk 0:02:39]} 17. Na3 {[%clk 0:02:38.8]} 17... Qc5 {[%clk 0:02:25.1]} 18. Nc4
{[%clk 0:02:38]} 18... b5 {[%clk 0:02:21.6]} 19. Qa6 {[%clk 0:02:22.3]} 19...
bxc4 {[%clk 0:02:20.4]} 20. bxc4 {[%clk 0:02:23.2]} 20... Rc6 {[%clk 0:02:19.9]}
21. Qb7 {[%clk 0:02:19.9]} 21... Rb8 {[%clk 0:02:17.2]} 22. Qd7 {[%clk
0:02:14.1]} 22... Qxc4 {[%clk 0:02:09]} 23. Qxa7 {[%clk 0:01:58]} 23... Ra6
{[%clk 0:02:00.2]} 24. Qd7 {[%clk 0:01:55.7]} 24... Be5 {[%clk 0:01:44]} 25.
Rac1 {[%clk 0:01:51.2]} 25... Qxa2 {[%clk 0:01:42.2]} 26. f4 {[%clk 0:01:41.6]}
26... Rb2 {[%clk 0:01:40.6]} 27. Kh1 {[%clk 0:01:14.5]} 27... Bd6 {[%clk
0:00:50]} 28. Rc8+ {[%clk 0:01:10.2]} 28... Bf8 {[%clk 0:00:49.4]} 29. Qe7
{[%clk 0:00:58.7]} 29... Kg7 {[%clk 0:00:43.5]} 30. Rxf8 {[%clk 0:00:54.5]}
30... Rxg2 {[%clk 0:00:39.3]} 31. Qxf7+ {[%clk 0:00:52.9]} 31... Kh6 {[%clk
0:00:38.8]} 32. Qxf6+ {[%clk 0:00:46.5]} 32... Rg6 {[%clk 0:00:38.4]} 33. Qh4+
{[%clk 0:00:37.6]} 33... Kg7 {[%clk 0:00:38.7]} 34. Qe7+ {[%clk 0:00:31.5]}
34... Kh6 {[%clk 0:00:38]} 35. Qh4+ {[%clk 0:00:21.3]} 35... Kg7 {[%clk
0:00:37.3]} 36. Qe7+ {[%clk 0:00:19.4]} 36... Kh6 {[%clk 0:00:36.8]} 37. Qh4+
{[%clk 0:00:18.8]} 1/2-1/2